bitfinex/quotes_ETHUSD_20251220
["timestamp","ask_amount","ask_price","bid_price","bid_amount"]
[1766198734790,0.441,2989.5,2989.0,0.001]
[1766198735233,2.21881,2989.5,2989.0,0.001]
[1766198735518,1.5761,2989.4,2989.0,0.001]
[1766198735682,0.441,2989.5,2989.0,0.001]
[1766198735886,0.441,2989.5,2989.0,1.6459]
[1766198737326,0.441,2989.4,2989.1,3.3454886]
[1766198737838,0.441,2989.4,2989.2,0.6616]
[1766198738003,0.441,2989.4,2989.0,0.001]
[1766198738202,2.0171,2989.4,2989.0,0.001]
[1766198738598,2.0171,2989.4,2989.0,3.3465762]
[1766198739914,2.0171,2989.4,2989.0,0.001]
[1766198741109,0.441,2989.4,2989.0,0.001]
[1766198741304,0.441,2989.4,2989.0,0.6626]
[1766198741706,0.6184,2989.6,2989.0,1.3153]
[1766198742008,0.441,2989.4,2989.0,1.3153]
[1766198742206,0.441,2989.4,2989.1,3.3454886]
[1766198742729,0.6184,2989.6,2989.1,3.3454886]
[1766198742936,0.441,2989.4,2989.1,3.3454886]
[1766198743312,1.3987,2989.4,2989.0,0.001]
[1766198743528,2.0171,2989.4,2989.0,0.001]
[1766198747843,1.3987,2989.4,2989.0,0.001]
[1766198751043,0.441,2989.4,2989.0,0.001]
[1766198751214,1.5761,2989.2,2989.0,0.001]
[1766198751413,0.441,2989.1,2989.0,0.001]
[1766198758939,1.3987,2989.1,2989.0,0.001]
[1766198759142,1.3987,2989.1,2988.9,0.001]
[1766198759355,2.21881,2989.1,2988.9,0.001]
[1766198760444,2.21881,2989.1,2989.0,0.001]
[1766198760828,2.21881,2989.1,2988.5,4.64619565]
[1766198761027,2.21881,2989.1,2988.6,0.6616]
[1766198761445,1.5761,2989.0,2988.5,3.34612743]
[1766198761945,1.5761,2989.0,2988.5,4.00772743]
[1766198765433,0.441,2988.9,2988.5,4.00772743]
[1766198766672,0.441,2988.8,2988.5,0.6616]
[1766198766965,0.441,2988.8,2988.5,4.00774639]
[1766198768749,0.441,2988.8,2988.5,4.00874639]
[1766198769068,0.441,2988.8,2988.5,3.34714639]
[1766198771368,0.441,2988.8,2988.5,0.6155]
[1766198771569,0.441,2988.8,2988.5,1.2539]
[1766198772085,0.441,2988.8,2988.5,0.001]
[1766198772086,1e-08,2988.8,2988.5,0.001]
[1766198772235,1e-08,2988.8,2988.1,0.6155]
[1766198772236,0.59320001,2988.8,2988.1,0.6155]
[1766198772441,0.59320001,2988.8,2988.1,1.2549]
[1766198772442,1.5506,2988.7,2988.1,1.2549]
[1766198772674,1.5506,2988.7,2988.1,0.6155]
[1766198772966,1e-08,2988.8,2988.1,0.001]
[1766198773169,0.9574,2988.7,2988.1,3.34759852]
[1766198773350,0.9574,2988.5,2988.1,0.001]
[1766198773548,0.441,2988.4,2988.1,0.001]
[1766198774560,0.5932,2989.0,2988.3,0.441]
[1766198774764,0.441,2988.9,2988.5,1.2539]
[1766198774964,1.5506,2989.0,2988.5,1.2539]
[1766198775167,0.441,2988.9,2988.3,0.6394]
[1766198775459,1.9916,2988.9,2988.3,4.60019431]
[1766198775658,1.5506,2988.8,2988.3,6.21417317]
[1766198776473,0.441,2988.7,2988.3,6.21417317]
[1766198777872,1.5506,2988.8,2988.3,9.5605574]
[1766198778075,0.441,2988.7,2988.3,6.21417317]
[1766198779973,0.002,2989.0,2988.5,7.39712941]
[1766198780166,0.443,2989.0,2988.7,1.2554]
[1766198780757,0.443,2989.0,2988.7,0.616]
[1766198780949,0.002,2989.0,2988.7,0.616]
[1766198781693,1.6002,2989.0,2988.3,8.3066574]
[1766198781846,1.6002,2989.0,2988.4,1.47006574]
[1766198782169,1.6002,2989.0,2988.5,1.2554]
[1766198782357,0.9676,2989.0,2988.5,4.6014651]
[1766198784276,0.9676,2989.0,2988.5,7.94762538]
[1766198784479,0.9676,2989.0,2988.5,4.6014651]
[1766198784681,0.9676,2989.0,2988.5,5.64070078]
[1766198785154,0.002,2989.0,2988.5,5.64070078]
[1766198785681,0.002,2989.0,2988.6,0.616]
[1766198786062,0.002,2989.0,2988.6,4.60139623]
[1766198786369,0.002,2989.3,2988.8,0.616]
[1766198786546,0.002,2989.5,2989.1,1.2534]
[1766198788565,0.002,2989.5,2988.9,0.80131294]
[1766198788760,0.002,2989.5,2988.9,4.14696609]
[1766198788959,0.002,2989.5,2989.1,1.2534]
[1766198791263,0.002,2989.9,2989.1,3.34548826]
[1766198791264,1.6002,2989.9,2989.1,3.34548826]
[1766198791463,1.6002,2989.9,2989.1,3.80426838]
[1766198791663,2.0412,2989.9,2989.1,3.80426838]
[1766198791885,2.0412,2989.9,2989.2,1.2534]
[1766198792263,0.9656,2989.8,2989.3,1.2534]
[1766198792492,1.0756,2989.9,2989.3,1.2534]
[1766198792655,0.002,2989.9,2989.2,1.2534]
[1766198792860,0.002,2989.9,2989.3,1.2534]
[1766198793062,0.443,2989.9,2989.2,0.8403157]
[1766198793364,0.443,2989.9,2989.3,1.2534]
[1766198793583,0.443,2989.9,2989.4,0.616]
[1766198793784,0.443,2989.9,2989.4,1.2534]
[1766198794089,0.002,2989.5,2989.4,1.2534]
[1766198794391,0.002,2989.5,2989.3,1.2523]
[1766198795988,0.443,2989.9,2989.3,1.2523]
[1766198795989,0.002,2989.9,2989.3,3.345264]
[1766198796191,0.002,2989.9,2989.4,1.2523]
[1766198797383,0.002,2989.9,2989.4,1.71206367]
[1766198797700,0.002,2989.9,2989.5,0.6374]
[1766198797907,0.002,2990.2,2989.5,3.34504097]
[1766198798078,0.002,2990.2,2989.6,0.6374]
[1766198798266,0.002,2990.2,2989.6,0.6149]
[1766198798470,0.002,2990.2,2989.7,1.2523]
[1766198800997,1.5276,2990.2,2989.6,0.44197046]
[1766198801408,1.5276,2990.2,2989.5,0.6374]
[1766198801580,1.5276,2990.2,2989.6,0.6149]
[1766198801995,1.5276,2990.2,2989.6,3.95981854]
[1766198802183,1.5276,2990.2,2989.6,3.95980039]
[1766198802382,1.5276,2990.2,2989.6,4.59720039]
[1766198802809,0.002,2990.2,2989.7,1.2523]
[1766198803003,0.002,2990.2,2989.8,0.6149]
[1766198804603,0.002,2990.2,2989.7,0.6374]
[1766198804908,0.965,2990.2,2989.7,0.6374]
[1766198805613,1.5276,2990.2,2989.7,0.6374]
[1766198806406,0.002,2990.2,2989.7,3.88365059]
[1766198806594,0.002,2990.5,2989.7,7.66946779]
[1766198806989,0.002,2990.5,2989.8,1.2416]
[1766198807191,0.002,2990.5,2989.7,7.66946779]
[1766198807391,0.002,2990.5,2990.0,4.58348133]
[1766198807794,0.002,2990.5,2990.0,1.239]
[1766198808001,0.002,2990.5,2989.9,3.34457601]
[1766198808183,1.5256,2990.4,2989.8,4.11162489]
[1766198808380,0.002,2990.5,2989.8,4.11162489]
[1766198808706,0.5626,2990.3,2989.9,0.50914583]
[1766198808891,1.5256,2990.3,2989.9,0.50914583]
[1766198810004,1.5256,2990.3,2989.9,3.85371785]
[1766198810917,1.5256,2990.3,2989.9,0.50914583]
[1766198811504,1.5256,2990.3,2989.9,3.85370915]
[1766198811710,1.5256,2990.3,2990.0,0.58488559]
[1766198812505,1.5276,2990.5,2990.0,0.58488559]
[1766198812921,0.5646,2990.5,2990.0,0.58488559]
[1766198813096,1.5276,2990.5,2990.0,0.58488559]
[1766198814715,0.5646,2990.5,2990.0,0.58488559]
[1766198815019,0.963,2990.4,2990.0,0.58488559]
[1766198815918,0.5646,2990.5,2990.0,5.14678529]
[1766198816302,0.5646,2990.5,2990.0,1.80238559]
[1766198816506,1.5276,2990.5,2990.0,5.14683909]
[1766198818095,0.002,2990.4,2990.0,5.14683909]
[1766198818297,1.5256,2990.3,2990.0,0.58488559]
[1766198818519,1.5256,2990.3,2989.8,4.55422551]
[1766198819220,0.002,2990.4,2989.7,0.441]
[1766198819423,1.5256,2990.4,2989.8,3.34462985]
[1766198819721,0.963,2990.3,2989.8,4.55162985]
[1766198820022,0.963,2990.3,2989.7,0.441]
[1766198820222,0.002,2990.5,2989.8,3.34468395]
[1766198820521,1.5256,2990.3,2989.8,3.34468395]
[1766198821131,0.002,2990.5,2989.4,0.001]
[1766198821132,0.5626,2990.1,2989.4,0.001]
[1766198821421,1.4091,2989.7,2989.4,0.001]
[1766198821718,0.8465,2989.7,2989.4,0.001]
[1766198822025,0.5626,2989.6,2989.4,0.001]
[1766198822714,0.5626,2989.6,2989.0,0.441]
[1766198822715,1.4081,2989.6,2989.0,0.441]
[1766198823112,1.4081,2989.6,2989.0,1.9939]
[1766198826025,3.34449013,2990.0,2989.0,1.9939]
[1766198826026,0.8455,2989.9,2989.0,0.441]
[1766198826227,0.5706,2989.6,2989.0,0.441]
[1766198826401,1.4161,2989.5,2989.0,0.441]
[1766198827298,1.4161,2989.5,2989.0,0.442]
[1766198827923,0.8455,2989.5,2989.0,0.442]
[1766198828113,0.5706,2989.4,2989.0,0.442]
[1766198829016,1.4161,2989.4,2989.0,0.442]
[1766198830529,1.4161,2989.4,2989.0,0.001]
[1766198830730,0.441,2989.7,2988.7,0.441]
[1766198830919,0.8455,2989.5,2988.7,0.441]
[1766198831106,0.5706,2989.2,2988.7,0.441]
[1766198831532,0.5706,2989.0,2988.7,0.441]
[1766198832530,0.5706,2989.0,2988.7,3.78691141]
[1766198832731,0.8455,2989.1,2988.7,3.78691141]
[1766198833305,1.4161,2989.1,2988.7,3.78691141]
[1766198833532,1.4161,2989.1,2988.7,0.441]
[1766198834240,0.5706,2989.0,2988.7,3.78690585]
[1766198834421,0.8455,2989.2,2988.7,3.78690585]
[1766198834616,1.4161,2989.2,2988.7,3.78690585]
[1766198836022,1.4161,2990.2,2988.7,4.75720873]
[1766198836206,0.5706,2990.0,2988.7,7.16630157]
[1766198836404,0.5706,2989.4,2988.8,0.9798]
[1766198836637,0.5706,2989.2,2988.7,3.78690585]
[1766198836936,0.5706,2989.2,2988.8,1.02268347]
[1766198837454,0.5706,2989.2,2988.8,2.00248347]
[1766198838036,0.5706,2989.2,2988.8,5.34824872]
[1766198838836,1.2865,2989.8,2988.8,7.71427313]
[1766198839137,0.5706,2989.7,2989.1,1.5637]
[1766198839337,0.5706,2989.7,2989.1,2.0047]
[1766198839532,0.8455,2989.6,2988.9,1.5637]
[1766198839726,1.4161,2989.5,2988.9,1.5637]
[1766198839926,0.5706,2989.4,2988.9,1.5637]
[1766198840235,1.4161,2989.4,2988.9,1.5637]
[1766198841412,0.5706,2989.3,2988.8,1.46368347]
[1766198841608,1.4161,2989.3,2988.8,0.441]
[1766198842034,0.5706,2989.2,2988.8,0.441]
[1766198843027,0.8455,2989.2,2988.8,0.441]
[1766198843229,0.5706,2989.1,2988.8,0.441]
[1766198843423,0.5706,2989.1,2988.8,0.442]
[1766198844037,0.8455,2989.2,2988.6,3.34702411]
[1766198844339,1.4161,2989.1,2988.6,3.34702411]
[1766198845240,0.002,2989.5,2989.0,0.5839]
[1766198845542,0.002,2989.5,2989.1,1.5637]
[1766198845543,0.443,2989.5,2989.1,1.5637]
[1766198845720,0.443,2989.5,2988.6,1.35842711]
[1766198846338,0.002,2989.5,2989.1,0.9593]
[1766198846537,0.002,2989.5,2989.0,1.5481]
[1766198847328,1.4098,2989.5,2988.9,3.34569772]
[1766198847526,1.4098,2989.5,2988.9,5.76186824]
[1766198850053,1.4098,2989.5,2988.9,5.76187857]
[1766198851954,0.002,2989.5,2989.1,0.9593]
[1766198852149,0.002,2989.5,2989.0,0.9593]
[1766198852449,0.002,2989.5,2989.2,0.9593]
[1766198852649,0.5617,2990.0,2989.2,7.39750403]
[1766198852841,1.4072,2990.0,2989.4,1.5481]
[1766198853227,1.8482,2990.0,2989.4,1.5481]
[1766198855037,0.441,2990.1,2989.6,0.5448]
[1766198855232,1.404,2990.2,2989.6,0.5448]
[1766198855443,1.404,2990.2,2989.6,1.93198966]
[1766198855444,0.5559,2990.2,2989.6,1.93198966]
[1766198855621,1.4014,2990.1,2989.6,1.93198966]
[1766198858549,1.4014,2990.1,2989.6,1.543]
[1766198861354,1.4034,2990.1,2989.6,1.543]
[1766198861738,1.4034,2990.1,2989.6,4.88791976]
[1766198861957,1.4034,2990.1,2989.6,1.543]
[1766198862470,1.4034,2990.1,2989.6,4.8879055]
[1766198862750,0.002,2990.1,2989.5,0.5448]
[1766198862954,0.002,2990.1,2989.6,3.34486712]
[1766198863131,0.002,2990.1,2989.7,1.543]
[1766198865163,0.002,2990.1,2989.7,4.8877788]
[1766198865472,0.002,2990.1,2989.7,1.543]
[1766198865759,0.002,2990.1,2989.7,4.887809]
[1766198866058,0.002,2990.1,2989.7,1.543]
[1766198868258,0.002,2990.3,2989.6,4.8591293]
[1766198868445,0.002,2990.3,2989.8,0.5448]
[1766198868638,0.002,2990.3,2990.0,0.5448]
[1766198868843,0.002,2990.3,2990.0,1.543]
[1766198869456,0.002,2990.3,2989.7,3.34477958]
[1766198869756,0.002,2990.1,2989.8,1.543]
[1766198869961,0.002,2990.1,2990.0,0.9982]
[1766198870262,0.002,2990.1,2990.0,1.543]
[1766198870654,0.002,2990.3,2989.8,3.34467409]
[1766198870655,0.002,2990.3,2989.9,0.5448]
[1766198870962,0.002,2990.7,2990.2,0.9982]
[1766198871164,0.002,2990.7,2990.5,1.543]
[1766198871368,0.002,2990.7,2990.0,10.7378852]
[1766198871667,0.002,2990.7,2990.3,1.543]
[1766198872239,0.002,2990.7,2989.9,3.34450404]
[1766198872567,0.002,2990.7,2990.2,1.543]
[1766198873365,1.3656,2990.7,2990.2,1.543]
[1766198874065,1.3656,2990.7,2990.0,3.34445974]
[1766198874366,1.3612,2990.6,2990.0,3.34445974]
[1766198874561,1.3612,2990.6,2990.0,4.88745974]
[1766198876171,1.3612,2990.6,2990.1,1.543]
[1766198877371,1.3632,2990.6,2990.1,1.543]
[1766198878566,1.8032,2990.6,2990.1,1.543]
[1766198878774,1.8032,2990.6,2990.1,4.88734419]
[1766198878975,1.8032,2990.6,2990.1,1.543]
[1766198879470,0.442,2990.6,2990.1,1.543]
[1766198879645,0.442,2990.6,2990.2,0.5448]
[1766198880374,0.442,2990.6,2990.2,1.543]
[1766198883649,0.002,2990.6,2990.0,3.34443367]
[1766198883850,0.002,2990.6,2990.3,0.5448]
[1766198884078,0.002,2990.6,2990.4,1.543]
[1766198886683,0.002,2990.7,2990.4,1.543]
[1766198886872,0.002,2990.7,2990.2,0.9855]
[1766198887050,0.002,2990.7,2990.4,0.9855]
[1766198887252,0.002,2990.7,2990.4,1.5177]
[1766198888978,0.002,2990.7,2990.2,0.9855]
[1766198889183,0.002,2990.7,2990.2,1.5177]
[1766198890409,0.17912,2990.7,2990.1,0.001]
[1766198890677,1.3244,2990.6,2990.1,0.001]
[1766198890981,1.3244,2990.6,2990.1,1.5187]
[1766198891184,1.3244,2990.6,2990.1,4.86305758]
[1766198891783,0.002,2990.7,2990.2,1.5177]
[1766198892457,1.3217,2990.7,2990.2,1.5177]
[1766198900164,0.002,2990.7,2990.2,3.34425184]
[1766198900366,0.002,2990.7,2990.3,1.5177]
[1766198900691,1.7451,2991.1,2990.4,0.9855]
[1766198900890,1.7451,2991.1,2990.5,1.5177]
[1766198902491,0.002,2990.7,2990.5,1.5177]
[1766198902793,1.7451,2991.1,2990.3,3.34412843]
[1766198903092,1.7451,2991.1,2990.6,1.5177]
[1766198903968,0.442,2991.1,2990.6,0.5322]
[1766198904167,0.442,2991.1,2990.6,1.5177]
[1766198905696,1.7358,2991.1,2990.6,1.5177]
[1766198907995,1.2958,2991.1,2990.6,1.5177]
[1766198908295,1.7358,2991.1,2990.6,1.5177]
[1766198911607,1.91293008,2991.1,2990.6,1.5177]
[1766198915717,1.7134,2991.1,2990.6,1.5177]
[1766198915908,0.442,2991.1,2990.5,0.001]
[1766198916209,0.442,2991.1,2990.6,0.992]
[1766198916516,0.442,2991.1,2990.7,1.5049]
[1766198917116,0.442,2991.1,2990.7,0.5129]
[1766198917424,0.442,2991.1,2990.9,1.5049]
[1766198917618,0.002,2991.1,2990.9,1.5049]
[1766198918021,0.002,2991.1,2990.5,0.03443922]
[1766198918324,0.002,2991.1,2990.7,0.5129]
[1766198918616,0.002,2991.1,2990.7,1.5049]
[1766198922423,0.002,2991.1,2990.5,3.34490289]
[1766198922714,0.442,2991.3,2990.6,0.42978029]
[1766198922919,0.442,2991.3,2990.7,0.5129]
[1766198923124,0.442,2991.3,2990.8,1.5049]
[1766198924315,0.002,2991.3,2990.8,1.5049]
[1766198925026,0.002,2991.3,2990.5,3.34488415]
[1766198925027,0.8555,2991.2,2990.5,1.5059]
[1766198925224,0.3984,2991.1,2990.6,1.5049]
[1766198925528,0.8555,2991.2,2990.6,1.5049]
[1766198925728,1.02507,2991.2,2990.6,1.5049]
[1766198926024,1.42127,2991.2,2990.6,1.5049]
[1766198927501,1.37127,2991.2,2990.6,1.5049]
[1766198928128,1.37127,2991.2,2990.7,1.5049]
[1766198929030,0.3911,2991.1,2990.5,0.001]
[1766198929322,0.3911,2991.1,2990.5,1.5059]
[1766198929629,1.1966,2991.1,2990.5,1.5059]
[1766198931417,1.1966,2991.1,2990.5,0.63046686]
[1766198931722,1.1966,2991.1,2990.6,1.5049]
[1766198933436,1.1986,2991.1,2990.6,1.5049]
[1766198937740,0.8055,2991.0,2990.5,0.001]
[1766198937907,0.8055,2991.0,2990.5,1.5059]
[1766198938107,1.1777,2991.0,2990.5,1.5059]
[1766198938321,1.6177,2991.0,2990.5,1.5059]
[1766198938535,1.1756,2990.9,2990.5,0.001]
[1766198941309,0.44,2991.0,2990.5,0.001]
[1766198941514,0.44,2991.0,2990.5,1.5059]
[1766198941716,1.1694,2990.9,2990.5,0.001]
[1766198941941,0.44,2991.0,2990.1,0.001]
[1766198942241,1.1664,2990.6,2990.1,0.001]
[1766198942446,0.8055,2990.5,2990.1,0.001]
[1766198942624,1.1654,2990.5,2990.1,0.001]
[1766198942821,0.03350083,2990.4,2989.4,1.5059]
[1766198943027,0.8035,2989.9,2989.4,0.001]
[1766198943325,1.1634,2989.9,2989.6,1.00502344]
[1766198943530,0.3529,2990.0,2989.4,0.001]
[1766198944435,0.3529,2990.0,2989.4,0.9627]
[1766198944641,0.44,2990.1,2989.5,0.4567]
[1766198944842,0.8164,2990.1,2989.6,0.9617]
[1766198946139,0.44,2990.1,2989.7,0.4567]
[1766198946346,0.44,2990.1,2989.7,1.4184]
[1766198948540,0.44,2990.1,2989.7,0.9617]
[1766198951542,0.3639,2990.2,2989.7,1.4184]
[1766198951842,0.44,2990.5,2990.0,1.4184]
[1766198952419,0.3618,2990.6,2990.0,1.4184]
[1766198952620,0.8018,2990.6,2989.8,0.9617]
[1766198952846,0.8018,2990.6,2990.0,0.9617]
[1766198953045,0.8018,2990.6,2989.7,4.34981095]
[1766198953046,0.8018,2990.6,2990.1,1.4184]
[1766198954036,0.44,2990.7,2990.3,0.4567]
[1766198954236,0.44,2990.7,2990.3,1.4184]
[1766198955042,0.7957,2990.7,2990.1,1.4184]
[1766198955422,0.44,2990.7,2990.1,1.4184]
[1766198955635,0.3536,2990.6,2990.1,0.9617]
[1766198955835,0.7936,2990.8,2989.8,1.4184]
[1766198956039,0.7936,2990.8,2989.9,0.4567]
[1766198956346,0.41371537,2990.7,2990.2,0.9617]
[1766198957349,0.41371537,2990.7,2990.1,0.4567]
[1766198957642,0.3496,2990.6,2990.1,0.4567]
[1766198958373,0.3496,2990.6,2990.0,0.9617]
[1766198958550,0.3496,2990.6,2989.7,1.0050167]
[1766198958722,0.3466,2990.5,2989.7,2.4234167]
[1766198958922,0.3466,2990.3,2989.6,0.001]
[1766198959147,0.3466,2990.2,2989.6,0.001]
[1766198960949,0.3466,2990.2,2989.6,0.9283]
[1766198961158,0.3466,2990.2,2989.6,0.001]
[1766198965857,0.3316,2990.1,2989.4,0.001]
[1766198966156,0.3316,2990.1,2989.4,0.468]
[1766198966340,0.3316,2990.1,2989.4,1.3953]
[1766198967051,0.44,2990.0,2989.3,0.001]
[1766198967252,0.36310083,2989.9,2989.1,0.001]
[1766198967454,0.3267,2989.8,2989.0,0.001]
[1766198967659,0.3257,2989.6,2989.0,0.001]
[1766198967952,0.3257,2989.6,2988.9,0.001]
[1766198968458,0.3228,2989.5,2988.9,0.001]
[1766198969665,0.44,2989.7,2989.0,1.3943]
[1766198969874,0.7609,2989.7,2989.1,0.9273]
[1766198970237,0.3209,2989.6,2989.1,0.9273]
[1766198973972,0.3209,2989.6,2988.9,0.18463]
[1766198974128,0.3209,2989.6,2988.9,0.001]
[1766198975562,0.3209,2989.6,2988.8,0.441]
[1766198976564,0.03350083,2989.5,2988.8,0.441]
[1766198976735,0.3074,2989.4,2988.8,0.441]
[1766198979440,0.3074,2989.4,2988.6,0.001]
[1766198979762,0.3074,2989.4,2988.6,3.34703591]
[1766198979969,0.3074,2989.4,2988.6,3.90543742]
[1766198981071,0.3074,2989.4,2988.7,1.3549]
[1766198981278,0.3074,2989.4,2988.8,3.34578821]
[1766198982062,0.3094,2989.4,2988.8,3.34578821]
[1766198982263,0.3094,2989.4,2988.8,1.3549]
[1766198982895,0.3094,2989.4,2988.8,2.2155219]
[1766198983392,0.002,2989.4,2988.9,1.3549]
[1766198983687,0.002,2989.4,2989.0,1.3549]
[1766198984393,0.002,2989.4,2988.9,0.9221]
[1766198984598,0.002,2989.4,2989.1,0.9221]
[1766198985092,0.002,2989.4,2989.0,0.4328]
[1766198985272,0.002,2989.4,2988.8,0.4328]
[1766198986499,0.002,2989.4,2988.8,1.3549]
[1766198986795,0.002,2989.4,2988.6,0.001]
[1766198986998,0.002,2989.4,2988.6,3.81406224]
[1766198987490,0.002,2989.4,2988.6,4.24686224]
[1766198987794,0.002,2989.4,2988.6,5.16896224]
[1766198989611,0.002,2989.4,2988.6,1.39011583]
[1766198989802,0.002,2989.4,2988.6,1.82291583]
[1766198994519,0.002,2989.4,2988.6,0.46801583]
[1766198997338,0.002,2989.4,2988.6,0.001]
[1766198997339,0.38069482,2989.4,2988.6,0.001]
[1766198997932,0.44,2989.3,2988.6,0.001]
[1766199000951,0.03350083,2989.2,2988.4,0.882]
[1766199001240,3.7852667,2989.3,2988.2,0.001]
[1766199001549,0.37872667,2989.2,2988.4,7.39936575]
[1766199001729,0.002,2989.4,2988.5,3.34615327]
[1766199001923,0.002,2989.4,2988.8,1.3549]
[1766199002120,0.002,2989.4,2988.7,7.39936575]
[1766199002318,0.002,2989.4,2988.9,1.3549]
[1766199003027,0.002,2989.4,2988.5,3.34615327]
[1766199003244,0.002,2989.4,2988.6,1.3549]
[1766199004534,0.002,2989.4,2988.7,1.4066]
[1766199004731,0.002,2989.4,2988.8,0.9673]
[1766199004946,0.002,2989.4,2989.0,0.9673]
[1766199005347,0.002,2989.4,2989.2,1.4066]
[1766199005560,0.002,2989.4,2988.9,0.4393]
[1766199005759,0.002,2989.4,2988.9,0.9673]
[1766199005964,0.002,2989.4,2989.2,0.4393]
[1766199006168,0.002,2989.4,2989.2,1.4066]
[1766199008650,0.002,2989.4,2988.8,0.43133482]
[1766199009074,0.002,2989.4,2989.0,0.4393]
[1766199009377,0.002,2989.4,2989.0,1.4066]
[1766199010144,0.002,2989.4,2988.9,0.9673]
[1766199010359,0.002,2989.4,2989.1,1.4066]
[1766199012290,0.002,2989.4,2988.8,0.43133482]
[1766199012594,0.002,2989.4,2989.1,0.4393]
[1766199012794,0.002,2989.4,2989.2,1.4066]
[1766199014699,0.002,2989.4,2989.0,1.4066]
[1766199015069,0.002,2989.4,2988.7,2.41191981]
[1766199015269,0.002,2989.4,2988.9,0.9673]
[1766199015505,0.002,2989.4,2988.9,1.4066]
[1766199015894,0.002,2989.4,2988.7,1.00531981]
[1766199016102,0.002,2989.4,2989.0,1.4066]
[1766199017005,0.002,2989.4,2989.0,0.4393]
[1766199017206,0.002,2989.4,2989.1,1.4066]
[1766199032631,0.002,2989.4,2989.2,0.4315]
[1766199032928,0.002,2989.4,2989.2,1.3736]
[1766199036218,0.002,2989.4,2989.2,1.3593]
[1766199036414,1.00531981,2989.8,2988.8,1.00531981]
[1766199036614,0.44,2989.5,2989.2,0.4172]
[1766199036823,0.44,2989.5,2989.3,1.4404]
[1766199037755,0.44,2989.5,2988.8,1.44044257]
[1766199037962,0.44,2989.5,2989.0,0.4172]
[1766199038251,0.44,2989.5,2989.0,1.4404]
[1766199039320,0.442,2989.5,2989.0,1.4404]
[1766199039817,0.442,2989.5,2988.8,1.00531981]
[1766199040144,0.442,2989.5,2988.8,2.44571981]
[1766199040313,0.442,2989.5,2988.8,3.02489344]
[1766199040513,0.442,2989.5,2988.9,1.4404]
[1766199040716,1.00531981,2989.8,2989.0,0.4172]
[1766199041051,0.44,2989.8,2988.9,0.4172]
[1766199041253,0.44,2989.8,2989.0,1.4404]
[1766199041546,1.44531644,2989.8,2989.0,1.4404]
[1766199042839,1.92431257,2989.8,2989.0,1.4404]
[1766199044856,0.44,2989.7,2988.8,3.34580119]
[1766199045026,0.44,2989.7,2989.0,0.4172]
[1766199045227,0.44,2989.7,2989.1,1.0232]
[1766199045427,0.44,2989.7,2988.9,1.4404]
[1766199045639,0.44,2989.7,2988.9,2.0195625]
[1766199046064,0.44,2989.7,2988.9,1.6023625]
[1766199046376,0.44,2989.7,2989.0,1.4404]
[1766199047040,0.44,2989.7,2989.0,1.4414]
[1766199051056,0.44,2989.7,2989.0,0.001]
[1766199051252,0.47921032,2989.6,2989.0,0.001]
[1766199051550,0.47921032,2989.6,2989.0,0.4182]
[1766199051759,1.00731644,2989.8,2989.0,0.001]
[1766199052064,0.002,2989.8,2989.2,0.4172]
[1766199052268,0.002,2989.8,2989.4,0.4172]
[1766199053358,0.002,2989.8,2989.6,1.4404]
[1766199053852,0.002,2989.8,2989.6,0.4172]
[1766199055339,0.002,2989.8,2989.4,1.4404]
[1766199061863,0.002,2989.8,2989.1,4.35063105]
[1766199062065,0.002,2989.8,2989.5,0.4172]
[1766199062270,0.002,2989.8,2989.3,1.0232]
[1766199062437,0.002,2989.8,2989.2,1.0051716]
[1766199062976,0.002,2989.8,2989.2,2.4455716]
[1766199063338,0.002,2989.8,2989.3,1.4404]
[1766199063663,0.002,2989.8,2989.4,0.24455716]
[1766199064862,0.44,2990.2,2989.4,0.24455716]
[1766199065466,3.78425839,2990.2,2989.0,0.441]
[1766199065635,0.04358686,2990.0,2989.0,0.001]
[1766199065837,7.44148845,2989.8,2989.0,0.001]
[1766199066037,0.47350083,2989.7,2988.7,1.3447]
[1766199066256,0.47350083,2989.7,2988.7,0.9726]
[1766199066469,0.47350083,2989.7,2988.8,1.3447]
[1766199066869,1.00537709,2989.6,2988.8,1.3447]
[1766199067070,0.48237983,2989.5,2988.8,1.3447]
[1766199068262,1.00537709,2989.4,2988.8,1.3447]
[1766199070168,0.44,2989.3,2988.8,1.3447]
[1766199070871,1.00537709,2989.2,2988.8,1.3447]
[1766199071456,0.44,2989.3,2988.5,0.001]
[1766199071660,0.44,2989.3,2988.7,0.3721]
[1766199071861,1.44537709,2989.3,2988.8,1.3457]
[1766199075067,1.44537709,2989.3,2988.8,0.001]
[1766199075249,1.44537709,2989.3,2988.5,1.3457]
[1766199076753,1.44537709,2989.3,2988.5,0.001]
[1766199076956,1.44537709,2989.3,2988.6,1.3447]
[1766199077777,1.44537709,2989.3,2988.5,0.37982564]
[1766199077778,1.44537709,2989.3,2988.8,0.9726]
[1766199077984,1.44537709,2989.3,2988.9,1.3447]
[1766199078186,1.44537709,2989.3,2988.5,0.001]
[1766199078554,1.44537709,2989.3,2988.5,1.3457]